bitfinex/quotes_BTCUSD_20250114
["timestamp","ask_amount","ask_price","bid_price","bid_amount"]
[1736863130927,0.0018242,96488.0,96487.0,1.80622041]
[1736863131133,0.0018242,96488.0,96487.0,0.50622041]
[1736863131338,0.0018242,96488.0,96487.0,0.30622041]
[1736863131537,0.0018242,96488.0,96487.0,0.28322041]
[1736863131746,0.0018242,96488.0,96487.0,0.13322041]
[1736863131947,0.0834242,96488.0,96487.0,0.0166898]
[1736863132206,0.09276662,96488.0,96487.0,0.0256898]
[1736863132414,0.0844242,96488.0,96487.0,0.0256898]
[1736863132544,0.0834242,96488.0,96487.0,0.0166898]
[1736863132748,0.1317242,96488.0,96487.0,0.0076898]
[1736863133222,0.1317242,96488.0,96487.0,0.0146898]
[1736863133367,0.1327242,96488.0,96487.0,0.013]
[1736863133762,0.1327242,96488.0,96487.0,0.006]
[1736863133993,0.1327242,96488.0,96487.0,0.13322692]
[1736863134190,0.0018242,96488.0,96487.0,0.28422692]
[1736863134738,0.0008242,96488.0,96487.0,0.27722692]
[1736863134962,0.0008242,96488.0,96487.0,0.37822692]
[1736863135087,0.0008242,96488.0,96487.0,0.47822692]
[1736863135292,0.0008242,96488.0,96487.0,0.47722692]
[1736863135500,0.0008242,96488.0,96487.0,0.48022692]
[1736863135947,0.0008242,96488.0,96487.0,0.47722692]
[1736863136144,0.0018242,96488.0,96487.0,0.28622692]
[1736863136299,0.0018242,96488.0,96487.0,1.7939209]
[1736863136489,0.0008242,96488.0,96487.0,1.7849209]
[1736863136890,0.0008242,96488.0,96487.0,1.7919209]
[1736863137514,0.0008242,96488.0,96487.0,0.39723126]
[1736863137716,0.0008242,96488.0,96487.0,0.29723126]
[1736863137942,0.0018242,96488.0,96487.0,0.31323126]
[1736863138145,0.0008242,96488.0,96487.0,0.40423126]
[1736863138347,0.0008242,96488.0,96487.0,0.30423126]
[1736863139094,0.0018242,96488.0,96487.0,0.31323126]
[1736863139297,0.0018242,96488.0,96487.0,0.16323126]
[1736863139904,0.0008242,96488.0,96487.0,0.14723126]
[1736863140290,0.0008242,96488.0,96487.0,0.15423126]
[1736863140721,0.0008242,96488.0,96487.0,0.11122692]
[1736863141322,0.0018242,96488.0,96487.0,0.14322692]
[1736863141699,0.0008242,96488.0,96487.0,0.13422692]
[1736863141901,0.0008242,96488.0,96487.0,0.13122692]
[1736863142109,0.0008242,96488.0,96487.0,0.12722692]
[1736863142344,0.0008242,96488.0,96487.0,0.37722692]
[1736863142551,0.0038242,96488.0,96487.0,0.47722692]
[1736863143207,0.0038242,96488.0,96487.0,0.49723126]
[1736863143408,0.0038242,96488.0,96487.0,0.50123126]
[1736863143564,0.0038242,96488.0,96487.0,0.40123126]
[1736863143770,0.0038242,96488.0,96487.0,0.29723126]
[1736863144476,0.0018242,96488.0,96487.0,0.13123126]
[1736863144649,0.0018242,96488.0,96487.0,0.1229209]
[1736863144853,0.0018242,96488.0,96487.0,0.1419209]
[1736863145271,0.0028242,96488.0,96487.0,0.1499209]
[1736863145514,0.0028242,96488.0,96487.0,0.1349209]
[1736863145515,0.0008242,96488.0,96487.0,0.1349209]
[1736863145938,0.0008242,96488.0,96487.0,0.1379209]
[1736863146127,0.0008242,96488.0,96487.0,0.12722692]
[1736863146881,0.0008242,96488.0,96487.0,0.13222692]
[1736863147332,0.0008242,96488.0,96487.0,0.12722692]
[1736863147738,0.0008242,96488.0,96487.0,0.13022692]
[1736863147971,0.0018242,96488.0,96487.0,0.13822692]
[1736863148311,0.0008242,96488.0,96487.0,0.13022692]
[1736863148932,0.0008242,96488.0,96487.0,0.12722692]
[1736863149136,0.0008242,96488.0,96487.0,0.13022692]
[1736863150145,0.0008242,96488.0,96487.0,0.13322692]
[1736863152932,0.0008242,96488.0,96487.0,0.13408042]
[1736863153323,0.0008242,96488.0,96487.0,0.13108042]
[1736863153673,0.0008242,96488.0,96487.0,0.13308042]
[1736863154025,0.0008242,96488.0,96487.0,0.0288535]
[1736863154869,0.0008242,96488.0,96487.0,0.0258535]
[1736863155078,0.0810242,96488.0,96487.0,0.0008535]
[1736863155295,0.0820242,96488.0,96487.0,0.0008535]
[1736863155508,0.0810242,96488.0,96487.0,0.0008535]
[1736863155732,0.0820242,96488.0,96487.0,0.0008535]
[1736863156150,0.0810242,96488.0,96487.0,0.0008535]
[1736863156356,0.0820242,96488.0,96487.0,0.0028535]
[1736863156788,0.0810242,96488.0,96487.0,0.13008042]
[1736863157043,0.0810242,96488.0,96487.0,0.12808042]
[1736863157044,0.0008242,96488.0,96487.0,0.12808042]
[1736863157246,0.0008242,96488.0,96487.0,0.13008042]
[1736863157776,0.0008242,96488.0,96487.0,0.0008535]
[1736863157973,0.0008242,96488.0,96487.0,0.13008042]
[1736863158882,0.0018242,96488.0,96487.0,0.13008042]
[1736863159105,0.0008242,96488.0,96487.0,0.13008042]
[1736863159327,0.0018242,96488.0,96487.0,0.13008042]
[1736863159551,0.0018242,96488.0,96487.0,0.0008535]
[1736863159813,0.1285242,96488.0,96487.0,0.0028535]
[1736863160221,0.1275242,96488.0,96487.0,0.0028535]
[1736863160426,0.14037662,96488.0,96487.0,0.0008535]
[1736863160833,0.14037662,96488.0,96487.0,0.0028535]
[1736863161168,0.14137662,96488.0,96487.0,0.0028535]
[1736863161397,0.13969762,96488.0,96487.0,0.0008535]
[1736863162682,0.13869762,96488.0,96487.0,0.0008535]
[1736863162893,0.154952,96488.0,96487.0,0.0008535]
[1736863163125,0.155952,96488.0,96487.0,0.0008535]
[1736863163378,0.1705472,96488.0,96487.0,0.0028535]
[1736863163599,0.15529282,96488.0,96487.0,0.0028535]
[1736863163804,0.15429282,96488.0,96487.0,0.0028535]
[1736863163934,0.30429282,96488.0,96487.0,0.0028535]
[1736863164136,0.0802,96479.0,96458.0,0.0008537]
[1736863164340,0.00802,96478.0,96459.0,0.10422692]
[1736863164545,0.00806068,96477.0,96460.0,0.023]
[1736863164789,0.00806068,96477.0,96462.0,0.023]
[1736863164985,0.00806068,96477.0,96464.0,0.023]
[1736863165223,0.00806068,96477.0,96465.0,0.10422692]
[1736863165408,0.00806068,96477.0,96466.0,0.023]
[1736863165609,0.00806068,96477.0,96466.0,0.10422692]
[1736863165921,0.00806068,96477.0,96467.0,0.023]
[1736863166358,0.01006068,96477.0,96467.0,0.023]
[1736863166713,0.00806068,96477.0,96467.0,0.023]
[1736863166918,0.01006068,96477.0,96467.0,0.023]
[1736863167317,0.00806068,96477.0,96467.0,0.023]
[1736863167514,0.00806068,96477.0,96467.0,0.024]
[1736863167940,0.00806068,96477.0,96468.0,0.10422692]
[1736863168506,0.00806068,96477.0,96469.0,0.023]
[1736863168711,0.01006068,96477.0,96471.0,0.023]
[1736863168866,0.00806068,96477.0,96471.0,0.023]
[1736863169291,0.01006068,96477.0,96471.0,0.023]
[1736863169491,0.00806068,96477.0,96471.0,0.023]
[1736863169873,0.01006068,96477.0,96471.0,0.023]
[1736863170071,0.00806068,96477.0,96471.0,0.023]
[1736863170493,0.01206068,96477.0,96471.0,0.023]
[1736863170697,0.01206068,96477.0,96471.0,0.024]
[1736863171301,0.01206068,96477.0,96471.0,0.023]
[1736863171566,0.02402872,96477.0,96458.0,0.00100359]
[1736863171779,0.02402872,96477.0,96459.0,0.10422692]
[1736863171780,0.00806068,96477.0,96459.0,0.10422692]
[1736863171996,0.00806068,96477.0,96460.0,0.023]
[1736863172213,0.01006068,96477.0,96462.0,0.023]
[1736863172416,0.00806068,96477.0,96464.0,0.023]
[1736863172630,0.0802,96479.0,96466.0,0.023]
[1736863172851,0.004,96477.0,96468.0,0.023]
[1736863173055,0.0802,96479.0,96470.0,0.023]
[1736863173263,0.0802,96479.0,96472.0,0.023]
[1736863173512,0.002,96477.0,96474.0,0.023]
[1736863173718,0.002,96477.0,96476.0,0.023]
[1736863174253,0.002,96477.0,96476.0,0.12722692]
[1736863174544,0.002,96477.0,96458.0,0.00100359]
[1736863174704,0.002,96477.0,96459.0,0.10422692]
[1736863174909,0.002,96477.0,96476.0,0.001]
[1736863175290,0.002,96477.0,96460.0,0.023]
[1736863175514,0.002,96477.0,96462.0,0.023]
[1736863175719,0.005,96477.0,96464.0,0.023]
[1736863175923,0.0802,96479.0,96466.0,0.023]
[1736863176123,0.002,96477.0,96468.0,0.023]
[1736863176327,0.002,96477.0,96470.0,0.023]
[1736863176553,0.002,96477.0,96458.0,0.00100359]
[1736863176554,0.0802,96479.0,96472.0,0.023]
[1736863176914,0.002,96477.0,96476.0,0.001]
[1736863177093,0.0802,96479.0,96476.0,0.001]
[1736863177349,0.0802,96479.0,96473.0,0.023]
[1736863177571,0.00379257,96477.0,96473.0,0.023]
[1736863178439,0.00379257,96477.0,96471.0,0.0008536]
[1736863178706,0.01084484,96476.0,96471.0,0.0008536]
[1736863179439,0.00179257,96477.0,96471.0,0.0008536]
[1736863180068,0.0082,96476.0,96471.0,0.0008536]
[1736863180261,0.0082,96476.0,96473.0,0.001]
[1736863180714,0.0082,96476.0,96471.0,0.0008536]
[1736863181748,0.0082,96476.0,96471.0,0.0018536]
[1736863182492,0.002,96476.0,96471.0,0.0018536]
[1736863182743,0.00179257,96477.0,96471.0,0.0018536]
[1736863182960,0.002,96476.0,96471.0,0.0018536]
[1736863183171,0.002,96476.0,96472.0,0.12722692]
[1736863183396,0.002,96476.0,96471.0,0.0018536]
[1736863183397,0.01121926,96476.0,96471.0,0.0018536]
[1736863183605,0.002,96476.0,96471.0,0.0008536]
[1736863183822,0.00179257,96477.0,96471.0,0.0008536]
[1736863184016,0.00379257,96477.0,96471.0,0.0018536]
[1736863184655,0.00379257,96477.0,96471.0,0.0008536]
[1736863184876,0.00379257,96477.0,96458.0,0.00100359]
[1736863184877,0.5998,96474.0,96458.0,0.00100359]
[1736863185075,0.15,96465.0,96458.0,0.00100359]
[1736863185302,0.15,96463.0,96458.0,0.00100359]
[1736863185518,0.15,96461.0,96458.0,0.00100359]
[1736863185812,0.0805,96459.0,96458.0,0.00100359]
[1736863185949,0.11113713,96459.0,96458.0,0.00100359]
[1736863186391,0.11113713,96459.0,96458.0,0.00200359]
[1736863186594,0.11113713,96459.0,96458.0,0.00100359]
[1736863186790,0.0805,96459.0,96458.0,0.00100359]
[1736863186996,0.0805,96459.0,96458.0,0.00200359]
[1736863187394,0.0805,96459.0,96458.0,0.00100359]
[1736863187597,0.09109196,96459.0,96458.0,0.00100359]
[1736863188066,0.13751413,96459.0,96458.0,0.00100359]
[1736863188491,0.12172909,96459.0,96458.0,0.00100359]
[1736863188643,0.09929196,96459.0,96458.0,0.00100359]
[1736863188867,0.13992909,96459.0,96458.0,0.00200359]
[1736863189021,0.13092909,96459.0,96458.0,0.00100359]
[1736863189449,0.13792909,96459.0,96458.0,0.00200359]
[1736863189632,0.15119784,96459.0,96458.0,0.00100359]
[1736863190035,0.10729196,96459.0,96458.0,0.00200359]
[1736863190293,0.007,96459.0,96458.0,0.00200359]
[1736863190489,0.00179257,96471.0,96458.0,0.00100359]
[1736863190701,0.09302215,96469.0,96458.0,0.00100359]
[1736863190911,0.09302215,96469.0,96460.0,0.023]
[1736863191120,0.09302215,96469.0,96462.0,0.023]
[1736863191338,0.09302215,96469.0,96464.0,0.023]
[1736863191759,0.00179257,96471.0,96466.0,0.023]
[1736863191960,0.001,96468.0,96467.0,0.12722692]
[1736863192369,0.008,96468.0,96467.0,0.12722692]
[1736863192863,0.001,96468.0,96467.0,0.12722692]
[1736863193062,0.004,96468.0,96467.0,0.12722692]
[1736863193472,0.003,96468.0,96467.0,0.12722692]
[1736863193688,0.006,96468.0,96458.0,0.00100359]
[1736863193930,0.007,96468.0,96459.0,0.10422692]
[1736863194144,0.007,96468.0,96460.0,0.023]
[1736863194369,0.006,96468.0,96462.0,0.023]
[1736863194587,0.006,96468.0,96467.0,0.001]
[1736863195029,0.00179257,96471.0,96467.0,0.001]
[1736863195255,0.00179257,96471.0,96462.0,0.10422692]
[1736863195256,0.003,96468.0,96462.0,0.10422692]
[1736863195503,0.00179257,96471.0,96462.0,0.10422692]
[1736863195919,0.003,96468.0,96462.0,0.10422692]
[1736863196180,0.00179257,96471.0,96464.0,0.023]
[1736863196384,0.00179257,96471.0,96466.0,0.023]
[1736863196613,0.003,96468.0,96466.0,0.12722692]
[1736863197476,0.003,96468.0,96458.0,0.00100359]
[1736863197663,0.003,96468.0,96460.0,0.023]
[1736863197998,0.00179257,96471.0,96466.0,0.001]
[1736863198229,0.00579257,96471.0,96466.0,0.001]
[1736863198453,0.00579257,96471.0,96462.0,0.023]
[1736863198680,0.00179257,96471.0,96467.0,0.023]
[1736863198907,0.00179257,96471.0,96469.0,0.023]
[1736863199162,0.00179257,96471.0,96470.0,0.12722692]
[1736863199615,0.00579257,96471.0,96470.0,0.12722692]
[1736863199840,0.00179257,96471.0,96470.0,0.12722692]
[1736863200067,0.00179257,96471.0,96460.0,0.001]
[1736863200292,0.00179257,96471.0,96462.0,0.023]
[1736863200523,0.00179257,96471.0,96464.0,0.023]
[1736863200791,0.00179257,96471.0,96466.0,0.023]
[1736863201026,0.00179257,96471.0,96468.0,0.023]
[1736863201258,0.00579257,96471.0,96470.0,0.37722692]
[1736863201486,0.00179257,96471.0,96470.0,0.37722692]
[1736863201709,0.00479257,96471.0,96470.0,0.37722692]
[1736863201962,0.00479257,96471.0,96470.0,0.47722692]
[1736863202177,0.00179257,96471.0,96470.0,0.37722692]
[1736863202391,0.00179257,96471.0,96470.0,0.12722692]
[1736863202614,0.00479257,96471.0,96470.0,0.12722692]
[1736863202829,0.00179257,96471.0,96468.0,0.001]
[1736863203040,0.00179257,96471.0,96460.0,0.09237703]
[1736863203279,0.00279257,96471.0,96470.0,0.009]
[1736863203724,0.00279257,96471.0,96470.0,0.13622692]
[1736863204611,0.00179257,96471.0,96470.0,0.12722692]
[1736863205042,0.00179257,96471.0,96470.0,0.023]
[1736863206142,0.00179257,96471.0,96470.0,0.12722692]
[1736863206600,0.00179257,96471.0,96470.0,0.13322692]
[1736863207010,0.00179257,96471.0,96470.0,0.12722692]
[1736863207359,0.00179257,96471.0,96470.0,0.12922692]
[1736863208545,0.00179257,96471.0,96470.0,0.12722692]
[1736863210130,0.00179257,96471.0,96470.0,0.12922692]
[1736863211044,0.00179257,96471.0,96470.0,0.12722692]
[1736863211262,0.00179257,96471.0,96470.0,0.12922692]
[1736863211481,0.07689257,96471.0,96470.0,0.002]
[1736863211697,0.13066108,96471.0,96470.0,0.002]
[1736863211897,0.12279257,96471.0,96458.0,0.00100359]
[1736863212154,0.12279257,96471.0,96470.0,0.002]
[1736863212367,0.12279257,96471.0,96470.0,0.12922692]
[1736863212368,0.00179257,96471.0,96470.0,0.12922692]
[1736863212781,0.00179257,96471.0,96470.0,0.38026325]
[1736863212990,0.00879257,96471.0,96470.0,1.98022692]
[1736863213195,0.00879257,96471.0,96470.0,1.97922692]
[1736863213628,0.00879257,96471.0,96470.0,1.97722692]
[1736863213838,0.00879257,96471.0,96470.0,1.77722692]
[1736863214299,0.00879257,96471.0,96470.0,1.62808052]
[1736863214547,0.00879257,96471.0,96470.0,1.64807311]
[1736863214548,0.00979257,96471.0,96470.0,1.64807311]
[1736863214799,0.01079257,96471.0,96470.0,1.64807311]
[1736863214994,0.01079257,96471.0,96470.0,0.14807311]
[1736863214995,0.00179257,96471.0,96470.0,0.14807311]
[1736863215201,0.00279257,96471.0,96470.0,0.15810947]
[1736863215406,0.00279257,96471.0,96470.0,0.16410947]
[1736863215623,0.00179257,96471.0,96470.0,0.15407311]
[1736863215829,0.00279257,96471.0,96470.0,0.16307311]
[1736863216265,0.00179257,96471.0,96470.0,0.13107311]
[1736863216471,0.00279257,96471.0,96470.0,0.12008052]
[1736863216701,0.00279257,96471.0,96470.0,0.14308052]
[1736863217332,0.00279257,96471.0,96470.0,0.13708052]
[1736863217751,0.00179257,96471.0,96470.0,0.0068536]
[1736863218163,0.00279257,96471.0,96470.0,0.0098536]
[1736863218377,0.00179257,96471.0,96470.0,0.12808052]
[1736863218814,0.00379257,96471.0,96470.0,0.12808052]
[1736863219617,0.00179257,96471.0,96470.0,0.12808052]
[1736863220712,0.00179257,96471.0,96470.0,0.47808052]
[1736863220933,0.00379257,96471.0,96470.0,0.58738052]
[1736863221151,0.09302247,96506.0,96487.0,0.35]
[1736863221359,0.0162516,96512.0,96487.0,1.97722692]
[1736863221565,0.09302247,96522.0,96487.0,0.37722692]
[1736863221781,0.09302247,96522.0,96487.0,0.27722692]
[1736863222196,0.09302247,96522.0,96487.0,0.12722692]
[1736863222418,0.15,96529.0,96487.0,0.26579247]
[1736863222622,0.00094841,96488.0,96487.0,0.26979247]
[1736863223251,0.00094841,96488.0,96487.0,0.13122692]
[1736863223459,0.00094841,96488.0,96487.0,0.48226305]
[1736863223674,0.00094841,96488.0,96487.0,0.48122692]
[1736863224235,0.00194841,96488.0,96487.0,0.48422692]
[1736863224642,0.00194841,96488.0,96487.0,0.48622692]
[1736863224877,0.00094841,96488.0,96487.0,0.51922692]
[1736863225082,0.00094841,96488.0,96487.0,0.51722692]
[1736863225314,0.01625028,96518.0,96511.0,0.1]
[1736863225533,0.01632794,96518.0,96517.0,0.12722692]
[1736863225743,7.766e-05,96518.0,96517.0,0.12722692]
[1736863226798,7.766e-05,96518.0,96517.0,0.27722692]
[1736863228048,7.766e-05,96518.0,96517.0,0.28222692]
[1736863228258,7.766e-05,96518.0,96517.0,0.28322692]
[1736863228453,7.766e-05,96518.0,96517.0,0.27822692]
[1736863228851,7.766e-05,96518.0,96517.0,0.28222692]
[1736863229084,7.766e-05,96518.0,96517.0,0.10522692]
[1736863229550,7.766e-05,96518.0,96517.0,0.13222692]
[1736863230440,7.766e-05,96518.0,96517.0,0.10822692]
[1736863230644,7.766e-05,96518.0,96517.0,0.001]
[1736863231086,7.766e-05,96518.0,96517.0,0.003]
[1736863231307,0.12847766,96518.0,96485.0,0.01232367]
[1736863231530,0.01284777,96517.0,96486.0,0.10422692]
[1736863231725,0.26284777,96517.0,96486.0,0.10422692]
[1736863232141,0.16284777,96517.0,96487.0,0.023]
[1736863232366,0.16284777,96517.0,96489.0,0.023]
[1736863232574,0.26284777,96517.0,96489.0,0.12722692]
[1736863232780,0.0687961,96516.0,96489.0,0.12722692]
[1736863233818,0.26984777,96517.0,96486.0,0.001]
[1736863233819,0.007,96517.0,96491.0,0.023]
[1736863234023,0.12847766,96518.0,96493.0,0.023]
[1736863234234,0.13147766,96518.0,96495.0,0.023]
[1736863234445,0.13147766,96518.0,96477.0,0.2]
[1736863234446,0.007,96517.0,96497.0,0.023]
[1736863234656,0.13147766,96518.0,96498.0,0.10422692]
[1736863234914,0.01314777,96517.0,96499.0,0.023]
[1736863235127,0.007,96516.0,96501.0,0.023]
[1736863235319,0.01614777,96517.0,96503.0,0.023]
[1736863235534,0.01625003,96513.0,96503.0,0.023]
[1736863237764,0.02325003,96513.0,96503.0,0.023]
[1736863237970,0.0384228,96513.0,96470.0,0.18664664]
[1736863238171,0.2303,96499.0,96475.0,0.10422692]
[1736863238379,0.18579304,96490.0,96470.0,0.0008536]
[1736863238592,0.15,96487.0,96470.0,0.0008536]
[1736863238792,0.0841293,96486.0,96470.0,0.0008536]
[1736863239618,0.15,96487.0,96470.0,0.0008536]
[1736863239826,0.3252,96488.0,96471.0,0.10422692]
[1736863240055,0.00812,96487.0,96472.0,0.023]
[1736863240255,0.00812,96487.0,96474.0,0.023]
[1736863240479,0.00812,96487.0,96476.0,0.023]
[1736863240681,0.00812,96487.0,96470.0,0.0008536]
[1736863240856,0.02397028,96487.0,96470.0,0.0018536]
[1736863241254,0.15,96485.0,96470.0,0.0008536]
[1736863241569,0.0481,96484.0,96474.0,0.001]
[1736863241851,0.01625569,96483.0,96470.0,0.0008536]
[1736863242064,0.15,96479.0,96470.0,0.0008536]
[1736863242268,0.25422692,96479.0,96470.0,0.0018536]
[1736863242497,0.25422692,96479.0,96470.0,0.0008536]
[1736863243133,0.0803,96482.0,96470.0,0.0008536]
[1736863243134,0.3252,96477.0,96470.0,0.0008536]
[1736863244415,0.1,96475.0,96470.0,0.0008536]
[1736863244629,0.7036,96471.0,96470.0,0.0008536]
[1736863244831,0.6036,96471.0,96470.0,0.0008536]
[1736863245872,0.6126,96471.0,96470.0,0.0008536]
[1736863246008,0.68572761,96471.0,96470.0,0.0008536]
[1736863246421,0.4606,96471.0,96470.0,0.0008536]
[1736863247053,0.4516,96471.0,96470.0,0.0008536]
[1736863247256,0.45868376,96471.0,96470.0,0.0008536]
[1736863247457,0.46768376,96471.0,96470.0,0.0008536]
[1736863247678,0.45868376,96471.0,96470.0,0.0008536]
[1736863247902,0.02125704,96471.0,96470.0,0.12808052]
[1736863248172,0.02725704,96471.0,96470.0,0.27808052]
[1736863248386,0.01625704,96471.0,96470.0,0.27808052]
[1736863248588,0.005,96471.0,96470.0,0.27808052]
[1736863248790,0.008,96471.0,96470.0,0.27808052]
[1736863249021,0.003,96471.0,96470.0,0.27808052]
[1736863249270,8.279e-05,96488.0,96471.0,0.173]
[1736863249480,8.279e-05,96488.0,96478.0,0.18588117]
[1736863249691,8.279e-05,96488.0,96479.0,0.12722692]
[1736863250182,8.279e-05,96488.0,96470.0,0.0038536]
[1736863250383,8.279e-05,96488.0,96471.0,0.10422692]
[1736863250589,8.279e-05,96488.0,96472.0,0.023]
[1736863250828,8.279e-05,96488.0,96470.0,0.0038536]
[1736863251048,0.18588117,96482.0,96470.0,0.0038536]
[1736863251255,0.06664909,96481.0,96479.0,0.002]
[1736863251473,0.06664909,96481.0,96470.0,0.0008536]
[1736863251896,0.01625686,96479.0,96470.0,0.0008536]
[1736863252533,0.1,96474.0,96470.0,0.0008536]
[1736863252741,0.1,96471.0,96470.0,0.0018536]
[1736863253179,0.1,96471.0,96470.0,0.0008536]
[1736863253571,0.16959489,96471.0,96470.0,0.0008536]
[1736863253771,0.31959489,96471.0,96470.0,0.0008536]
[1736863254210,0.32759489,96471.0,96470.0,0.0008536]
[1736863254418,0.158,96471.0,96470.0,0.0008536]
[1736863254595,0.15,96471.0,96470.0,0.0008536]
[1736863254795,0.35922692,96471.0,96470.0,0.0008536]
[1736863255003,0.35922692,96471.0,96422.0,0.0008532]
[1736863255004,0.1,96461.0,96422.0,0.0008532]
[1736863255233,0.175,96460.0,96422.0,0.0008532]
[1736863257090,0.184,96460.0,96422.0,0.0008532]
[1736863257222,0.175,96460.0,96422.0,0.0008532]
[1736863257420,0.52639068,96471.0,96422.0,0.0008532]
[1736863257670,0.003,96460.0,96422.0,0.0008532]
[1736863258447,0.004,96460.0,96422.0,0.0008532]
[1736863258875,0.15,96459.0,96422.0,0.0008532]
[1736863259083,0.564692,96457.0,96422.0,0.0008532]
[1736863259288,0.1263,96439.0,96422.0,0.0008532]
[1736863259505,0.1,96434.0,96422.0,0.0008532]
[1736863259718,0.1,96433.0,96422.0,0.0008532]
[1736863260117,0.15,96432.0,96422.0,0.0008532]
[1736863260324,0.03624748,96431.0,96422.0,0.0008532]
[1736863261326,0.03081334,96430.0,96422.0,0.0008532]
[1736863261500,0.03624748,96431.0,96422.0,0.0008532]
[1736863261710,0.009,96431.0,96422.0,0.0008532]
[1736863262370,0.009,96431.0,96430.0,0.12722692]
[1736863263025,0.00508788,96433.0,96430.0,0.12826375]
[1736863263248,0.00179257,96471.0,96443.0,0.1]
[1736863263454,8.801e-05,96468.0,96451.0,0.023]
[1736863263678,8.801e-05,96468.0,96453.0,0.023]
[1736863263917,8.801e-05,96468.0,96455.0,0.023]
[1736863264190,8.801e-05,96468.0,96457.0,0.023]
[1736863264427,8.801e-05,96468.0,96459.0,0.023]
[1736863264667,8.801e-05,96468.0,96440.0,0.18588117]
[1736863264668,8.801e-05,96468.0,96460.0,0.10422692]
[1736863265137,8.801e-05,96468.0,96461.0,0.023]
[1736863265379,8.801e-05,96468.0,96463.0,0.023]
[1736863265624,8.801e-05,96468.0,96465.0,0.023]
[1736863265859,8.801e-05,96468.0,96467.0,0.023]
[1736863266100,8.801e-05,96468.0,96467.0,0.12722692]
[1736863266342,8.801e-05,96468.0,96437.0,0.00767797]
[1736863266573,0.00208801,96468.0,96438.0,0.10422692]
[1736863266813,0.00108801,96468.0,96438.0,0.10422692]
[1736863267025,8.801e-05,96468.0,96465.0,0.001]
[1736863267464,8.801e-05,96468.0,96438.0,0.10422692]
[1736863267888,8.801e-05,96468.0,96439.0,0.023]
[1736863267889,0.09457617,96467.0,96439.0,0.023]
[1736863268093,0.1997,96466.0,96440.0,0.10422692]
[1736863268319,0.1997,96466.0,96441.0,0.023]
[1736863268520,0.1997,96466.0,96443.0,0.023]
[1736863268736,0.1997,96466.0,96427.0,0.00767797]
[1736863268965,0.1997,96466.0,96403.0,0.0017171]
[1736863268966,0.15,96465.0,96430.0,0.29114499]
[1736863269184,0.0497,96466.0,96441.0,0.023]
[1736863269387,0.0497,96466.0,96443.0,0.023]
[1736863269597,0.02437848,96467.0,96450.0,0.18588117]
[1736863269810,0.01625848,96467.0,96453.0,0.023]
[1736863270026,0.01625848,96467.0,96465.0,0.25422692]
[1736863270309,0.01625848,96467.0,96466.0,0.023]
[1736863270554,8.801e-05,96468.0,96467.0,0.173]
[1736863270805,0.00179257,96471.0,96467.0,0.173]
[1736863270806,0.00179257,96471.0,96470.0,0.373]
[1736863271047,0.01625373,96501.0,96494.0,0.023]
[1736863271259,0.01625373,96501.0,96500.0,0.27722692]
[1736863271469,0.0497,96534.0,96501.0,0.173]
[1736863271673,0.0497,96534.0,96506.0,0.10422692]
[1736863272337,0.0497,96534.0,96507.0,0.023]
[1736863272556,0.00812,96531.0,96509.0,0.023]
[1736863272805,0.00194198,96517.0,96511.0,0.023]
[1736863273017,0.00194198,96517.0,96511.0,0.10422692]
[1736863273845,0.00194198,96517.0,96513.0,0.023]
[1736863274078,0.00394198,96517.0,96515.0,0.023]
[1736863274289,0.00194198,96517.0,96516.0,0.12722692]
[1736863274497,0.00394198,96517.0,96516.0,0.12722692]
[1736863274698,0.00594198,96517.0,96516.0,0.12722692]
[1736863274907,0.00194198,96517.0,96516.0,0.12722692]
[1736863276902,0.00194198,96517.0,96516.0,0.12822692]
[1736863277837,0.00294198,96517.0,96516.0,0.12822692]
[1736863278061,0.00194198,96517.0,96516.0,0.12822692]
[1736863278275,0.00194198,96517.0,96516.0,0.12722692]
[1736863278477,0.00194198,96517.0,96516.0,0.27922692]
[1736863279727,0.00294198,96517.0,96516.0,0.28122692]
[1736863280152,0.00194198,96517.0,96516.0,0.47922692]
[1736863280405,0.00294198,96517.0,96516.0,0.48107929]
[1736863280586,0.00294198,96517.0,96516.0,1.98107929]
[1736863280792,0.00194198,96517.0,96516.0,1.77907929]
[1736863280993,0.00294198,96517.0,96516.0,1.77907929]
[1736863281201,0.00294198,96517.0,96516.0,1.78007929]
[1736863281409,0.00194198,96517.0,96516.0,1.97807929]
[1736863281658,0.00294198,96517.0,96516.0,1.87907929]
[1736863281870,0.00294198,96517.0,96516.0,0.27907929]
[1736863282069,0.00294198,96517.0,96516.0,0.28307929]
[1736863283518,0.00194198,96517.0,96516.0,0.25807929]
[1736863283719,0.00294198,96517.0,96516.0,0.11007929]
[1736863283923,0.00294198,96517.0,96516.0,0.13307929]
[1736863284137,0.00194198,96517.0,96516.0,0.12707929]
[1736863284338,0.00294198,96517.0,96516.0,0.12907929]
[1736863284546,0.00294198,96517.0,96516.0,0.13207929]
[1736863284752,0.00294198,96517.0,96516.0,0.13007929]
[1736863284958,0.00294198,96517.0,96516.0,0.12707929]
[1736863285367,0.00394198,96517.0,96516.0,0.13007929]
[1736863287449,0.00394198,96517.0,96516.0,0.12907929]
[1736863287648,0.00194198,96517.0,96516.0,0.27707929]
[1736863287863,0.00194198,96517.0,96516.0,0.47807929]
[1736863288110,0.00294198,96517.0,96516.0,0.48007929]
[1736863288528,0.00294198,96517.0,96516.0,0.50737929]
[1736863288733,0.00294198,96517.0,96516.0,0.50637929]
[1736863289172,0.00179341,96543.0,96532.0,0.1]
[1736863289389,0.00179341,96543.0,96542.0,0.25422692]
[1736863289602,0.00179341,96543.0,96542.0,0.27722692]
[1736863290243,0.00179341,96543.0,96542.0,0.12722692]
[1736863290682,0.00179341,96543.0,96542.0,0.10422692]
[1736863291092,0.12669341,96543.0,96542.0,0.005]
[1736863291708,0.14744275,96543.0,96542.0,0.005]
[1736863291911,0.13477341,96543.0,96542.0,0.006]
[1736863292126,0.12669341,96543.0,96542.0,0.006]
[1736863292341,0.12669341,96543.0,96542.0,0.005]
[1736863292743,0.12569341,96543.0,96521.0,0.02403587]
[1736863292952,0.12569341,96543.0,96523.0,0.15]
[1736863293168,0.13169341,96543.0,96542.0,0.001]
[1736863293389,0.12569341,96543.0,96524.0,0.12722692]
[1736863293592,0.13886275,96543.0,96524.0,0.12722692]
[1736863293801,0.14386275,96543.0,96524.0,0.12722692]
[1736863294015,0.18588117,96540.0,96524.0,0.023]
[1736863294474,0.1,96533.0,96524.0,0.023]
[1736863294684,0.14738961,96532.0,96524.0,0.023]